bitfinex-derivatives/quotes_ETHF0:USTF0_20251229
["timestamp","ask_amount","ask_price","bid_price","bid_amount"]
[1767032513449,0.04685162,2941.4,2940.9,0.0051063]
[1767032514145,1.34802592,2942.0,2940.9,0.0051063]
[1767032516847,1.34802592,2941.8,2940.9,0.0051063]
[1767032518553,0.17012,2942.2,2940.9,0.0051063]
[1767032521051,0.17013,2942.1,2940.9,0.0051063]
[1767032521651,1.34679848,2941.0,2940.0,4.26744891]
[1767032521850,1.34679848,2941.1,2939.7,0.17026]
[1767032522148,1.34679848,2941.1,2939.7,5.13426]
[1767032522746,0.0051063,2940.7,2940.1,0.0051063]
[1767032526362,0.0051063,2940.7,2939.4,0.00421732]
[1767032526762,0.0051063,2940.7,2939.5,4.964]
[1767032527363,0.0051063,2940.7,2939.8,0.0051063]
[1767032527871,0.1753163,2940.7,2939.4,4.97021732]
[1767032528468,0.1753163,2940.7,2939.4,4.97121732]
[1767032528869,0.1753163,2940.7,2939.8,0.0051063]
[1767032539175,0.0051063,2940.7,2939.8,0.0051063]
[1767032548084,6.315,2941.5,2939.8,0.0051063]
[1767032549177,0.0051063,2940.9,2939.8,0.0051063]
[1767032549582,6.3e-06,2940.9,2939.8,0.0051063]
[1767032558086,0.17013,2942.0,2940.1,0.17024]
[1767032558285,1.34679848,2942.1,2940.1,0.17024]
[1767032558482,1.34679848,2942.1,2940.2,4.975]
[1767032558785,42.14679848,2942.1,2940.2,4.975]
[1767032559185,0.0051063,2941.4,2940.2,4.975]
[1767032559579,0.0051063,2941.4,2940.3,4.975]
[1767032560196,0.0051063,2941.4,2940.3,5.14523]
[1767032560384,0.17014,2941.9,2940.3,5.14523]
[1767032560580,0.1701,2942.5,2940.3,4.975]
[1767032560787,0.1701,2942.5,2940.7,0.1702]
[1767032561382,0.1701,2942.5,2941.3,0.0051063]
[1767032565892,0.17007,2943.2,2941.3,0.0051063]
[1767032566093,40.8,2942.9,2941.3,0.0051063]
[1767032568786,0.17007,2943.1,2941.3,0.0051063]
[1767032569190,1.51686848,2943.0,2941.3,0.0051063]
[1767032569497,1.51689848,2942.6,2941.3,0.0051063]
[1767032571183,1.51689848,2942.6,2941.3,6.3e-06]
[1767032572188,0.0051,2942.2,2941.3,6.3e-06]
[1767032581492,0.0051,2942.2,2941.4,1.34631265]
[1767032582196,0.0051,2942.2,2941.3,6.3e-06]
[1767032582495,0.0051,2942.2,2941.5,1.34631265]
[1767032582687,0.0051,2942.2,2941.5,1.34967869]
[1767032584496,0.0051,2942.2,2941.5,0.00336604]
[1767032585393,0.0051,2942.2,2941.3,6.3e-06]
[1767032585394,1.34631265,2942.1,2941.3,6.3e-06]
[1767032585584,1.34631265,2941.9,2941.3,6.3e-06]
[1767032586491,1.34967869,2941.9,2941.3,0.0026977]
[1767032586694,0.00336604,2941.9,2941.3,0.0026977]
[1767032592694,1.34967869,2941.9,2941.3,0.0026977]
[1767032592895,0.00336604,2941.9,2941.3,0.0026977]
[1767032601103,0.00336604,2941.9,2940.8,4.96]
[1767032602003,0.00336604,2941.9,2941.1,0.0051063]
[1767032604809,0.00336604,2941.9,2941.3,1.34631265]
[1767032605010,0.0051,2942.2,2941.5,1.34631265]
[1767032605402,0.0051,2942.2,2941.3,1.34631265]
[1767032605604,0.0051,2942.2,2941.5,1.34631265]
[1767032606006,0.0077914,2942.2,2941.5,1.34631265]
[1767032616020,0.0077914,2942.2,2941.5,4.962]
[1767032616823,1.35410405,2942.2,2941.3,4.963]
[1767032617329,1.34631265,2941.8,2941.1,0.0051063]
[1767032617521,1.34631265,2941.8,2941.1,4.9691063]
[1767032618022,1.34631265,2941.6,2941.1,0.0051063]
[1767032618324,0.0077914,2942.2,2940.6,4.965]
[1767032618325,1.34631265,2941.2,2940.6,4.965]
[1767032618519,1.34631265,2941.5,2940.6,4.965]
[1767032618825,1.34631265,2941.7,2940.6,4.965]
[1767032619125,1.34631265,2941.7,2940.9,0.0051063]
[1767032619323,1.34631265,2941.7,2940.9,0.00830085]
[1767032628236,0.17013,2942.0,2940.9,0.00830085]
[1767032628425,1.34631265,2941.6,2940.9,0.00830085]
[1767032638542,1.51726966,2942.0,2940.9,0.00830085]
[1767032642637,0.17013,2942.0,2940.9,0.00830085]
[1767032652045,0.17014,2941.9,2940.9,0.00830085]
[1767032659059,0.17014,2941.9,2940.9,8.5e-07]
[1767032659958,0.17014,2941.9,2941.1,0.0051063]
[1767032678468,0.0077914,2942.2,2941.1,0.0051063]
[1767032681358,0.17011,2942.1,2941.1,0.0051063]
[1767032688173,1.34713966,2942.0,2940.9,8.5e-07]
[1767032688370,1.34713966,2941.2,2940.3,0.07273]
[1767032688677,1.34713966,2941.6,2940.3,0.07273]
[1767032689065,10.33513966,2942.0,2940.3,0.07273]
[1767032689479,0.17015,2941.4,2940.9,0.0051063]
[1767032689671,0.17015,2941.4,2940.9,6.3e-06]
[1767032693574,0.17013,2941.8,2940.9,6.3e-06]
[1767032700479,1.34719266,2941.5,2940.9,6.3e-06]
[1767032702491,1.34719266,2941.2,2940.3,0.07703894]
[1767032702692,1.34719266,2940.9,2939.7,4.26744891]
[1767032702986,1.34719266,2940.9,2939.4,4.26744891]
[1767032703378,0.0051063,2940.4,2939.9,0.0051063]
[1767032703786,0.0051063,2940.4,2939.9,0.00757772]
[1767032708696,0.0051063,2940.4,2939.2,1.34719266]
[1767032708999,1.34719266,2940.3,2938.9,6.30119266]
[1767032709900,1.34719266,2940.3,2939.3,0.00340418]
[1767032711002,1.34719266,2940.0,2939.3,0.00340418]
[1767032711307,1.35150101,2940.0,2939.3,0.00340418]
[1767032712206,0.00430835,2940.0,2939.3,0.00340418]
[1767032712399,8.35e-06,2940.0,2939.5,1.34719266]
[1767032712597,8.35e-06,2940.0,2939.3,1.35059684]
[1767032714309,8.35e-06,2940.0,2939.3,6.30559684]
[1767032715415,8.35e-06,2940.0,2939.3,4.95840418]
[1767032716719,0.0051063,2940.4,2939.6,1.34719266]
[1767032717809,0.00758545,2940.4,2939.6,1.34719266]
[1767032720919,0.00758545,2940.4,2939.4,1.34719266]
[1767032721618,1.35477811,2940.4,2939.5,4.961]
[1767032721810,0.00758545,2940.4,2939.5,4.961]
[1767032723013,0.00758545,2940.4,2939.3,0.00340418]
[1767032723212,0.00758545,2940.4,2939.5,4.962]
[1767032723404,1.35477811,2940.4,2939.5,4.962]
[1767032723612,1.35477811,2940.4,2939.0,1.20561926]
[1767032723613,1.34719266,2939.6,2938.3,6.09635558]
[1767032723912,1.34719266,2939.6,2938.6,4.962]
[1767032724112,1.34719266,2939.8,2938.6,4.962]
[1767032725719,1.34719266,2939.6,2938.1,5.61077745]
[1767032725918,1.34719266,2939.5,2938.1,4.43778891]
[1767032726121,1.34719266,2939.5,2938.2,4.962]
[1767032726322,1.34719266,2939.5,2938.3,0.00340418]
[1767032727011,1.34719266,2939.5,2938.3,0.00773644]
[1767032727318,1.34719266,2939.6,2938.3,0.00773644]
[1767032727616,1.34719266,2939.6,2938.3,0.00433226]
[1767032727817,1.34719266,2939.6,2938.4,0.00340418]
[1767032729115,1.34719266,2939.4,2938.3,0.00433226]
[1767032729520,1.34719266,2939.4,2938.3,0.00773644]
[1767032729917,1.34719266,2939.2,2938.3,0.00773644]
[1767032730125,1.34719266,2939.2,2938.3,0.00433226]
[1767032730325,1.34719266,2939.2,2938.3,0.00773644]
[1767032734835,1.34719266,2938.9,2938.3,0.00773644]
[1767032735129,1.34719266,2938.7,2937.7,4.963]
[1767032736132,1.34719266,2938.7,2937.7,4.96594898]
[1767032738326,0.0051063,2938.9,2937.7,4.96594898]
[1767032741236,0.0051063,2938.9,2937.8,1.34719266]
[1767032743934,0.0051063,2938.9,2937.7,4.96594898]
[1767032744241,1.35229896,2938.9,2937.7,4.96594898]
[1767032745538,1.34719266,2938.6,2937.7,4.96594898]
[1767032745749,1.34719266,2937.9,2936.9,0.17041]
[1767032745953,1.34719266,2937.9,2936.4,1.34719266]
[1767032745954,1.34719266,2937.7,2936.4,2.55532938]
[1767032746246,0.0051063,2937.3,2936.5,4.969]
[1767032746651,0.00844378,2937.3,2936.5,4.97324511]
[1767032746851,4.378e-05,2937.3,2936.6,1.34719266]
[1767032747853,0.0051063,2937.2,2936.7,0.0051063]
[1767032748248,1.34719266,2938.2,2936.7,0.0051063]
[1767032749250,0.0051063,2937.7,2936.7,0.0051063]
[1767032751853,0.0051063,2937.7,2936.5,4.97324511]
[1767032751854,1.34719266,2937.3,2936.5,0.00424511]
[1767032752051,1.34719266,2936.9,2936.5,0.00424511]
[1767032752252,1.34719266,2937.1,2936.5,0.00424511]
[1767032752652,0.0051063,2937.7,2936.5,0.00424511]
[1767032752857,1.34719266,2937.6,2936.2,1.34719266]
[1767032753158,1.34719266,2937.6,2936.8,0.0051063]
[1767032753847,1.34719266,2937.6,2936.8,0.00840189]
[1767032756058,1.34719266,2937.3,2936.1,4.989]
[1767032756660,1.34719266,2937.5,2936.1,4.989]
[1767032756957,1.34719266,2937.1,2935.1,0.17051]
[1767032757261,1.34719266,2936.8,2935.4,6.33519266]
[1767032757960,1.34719266,2937.1,2935.6,1.34719266]
[1767032758156,1.34719266,2937.1,2935.8,1.34719266]
[1767032758459,1.51758266,2937.3,2935.8,1.34719266]
[1767032758660,1.34719266,2937.1,2935.8,1.34719266]
[1767032759057,0.0051063,2937.7,2935.4,4.988]
[1767032759058,0.0051063,2937.7,2936.3,1.34719266]
[1767032759364,1.34719266,2937.6,2936.3,1.34719266]
[1767032760257,1.34719266,2937.6,2936.2,1.34719266]
[1767032760453,40.8051063,2937.7,2935.7,0.17048]
[1767032763274,0.0051063,2937.7,2935.9,0.17047]
[1767032763571,0.0051063,2937.7,2936.2,0.17045]
[1767032763763,0.0051063,2937.7,2936.3,4.987]
[1767032767270,0.0051063,2937.7,2936.3,5.15744]
[1767032769065,0.0051063,2937.7,2936.4,0.17043]
[1767032769262,0.0051063,2937.7,2936.3,4.987]
[1767032769468,0.00436195,2938.2,2936.4,4.48792225]
[1767032770470,0.0051063,2937.6,2937.0,0.0051063]
[1767032771771,0.00436195,2938.2,2937.0,0.0051063]
[1767032772772,0.0051063,2937.9,2937.0,0.0051063]
[1767032775377,6.3e-06,2937.9,2937.0,0.0051063]
[1767032775772,0.00436195,2938.2,2937.0,0.0051063]
[1767032776478,0.00436195,2938.2,2937.0,0.1755063]
[1767032777780,0.0051063,2937.9,2937.0,0.1755063]
[1767032777975,0.00436195,2938.2,2937.0,0.1755063]
[1767032778983,0.0051063,2937.9,2937.0,0.1755063]
[1767032779179,0.00436195,2938.2,2937.0,0.1755063]
[1767032780283,0.00340418,2937.9,2937.0,0.1755063]
[1767032780580,0.00436195,2938.2,2937.0,1.52516656]
[1767032798395,0.00436195,2938.2,2937.0,5.79261547]
[1767032805398,0.00436195,2938.2,2937.1,4.26744891]
[1767032818618,0.00436195,2938.2,2937.0,5.79261547]
[1767032819218,0.00436195,2938.2,2937.1,4.26744891]
[1767032819618,0.00436195,2938.2,2937.1,4.43784891]
[1767032819819,0.17029,2938.9,2937.4,1.34966026]
[1767032820907,0.17407714,2938.9,2937.4,1.35343419]
[1767032822015,0.00378714,2938.9,2937.5,5.028]
[1767032822220,0.00378714,2938.9,2937.8,1.34966026]
[1767032822717,0.00378714,2938.9,2938.1,1.34904555]
[1767032822923,0.00378714,2938.9,2937.9,1.34904555]
[1767032824921,0.00378714,2938.9,2937.7,1.34904555]
[1767032825914,0.00378714,2938.9,2937.4,0.00377393]
[1767032825915,1.34904555,2938.7,2937.6,5.028]
[1767032826824,1.35283269,2938.9,2937.6,5.028]
[1767032827013,0.00378714,2938.9,2937.7,1.34904555]
[1767032827520,1.35283269,2938.9,2937.6,5.028]
[1767032827929,1.35283269,2938.9,2937.6,8.08192496]
[1767032829022,0.00378714,2938.9,2937.8,1.34904555]
[1767032829225,0.00378714,2938.9,2937.6,8.08192496]
[1767032829526,0.00378714,2938.9,2937.6,9.43097051]
[1767032833130,1.34904555,2938.7,2937.6,8.08192496]
[1767032833334,1.34904555,2938.2,2937.4,0.00377393]
[1767032834627,0.17033,2938.3,2937.4,0.00377393]
[1767032835027,1.51937555,2938.2,2937.4,0.00377393]
[1767032835228,0.17034,2938.1,2937.4,0.00377393]
[1767032847538,1.34904555,2938.0,2937.4,0.00377393]
[1767032847842,0.17034,2938.1,2937.4,0.00377393]
[1767032848140,1.34904555,2938.0,2937.4,0.00377393]
[1767032853252,0.17034,2938.1,2937.4,0.00377393]
[1767032855743,1.51938555,2938.1,2937.4,0.00377393]
[1767032860845,1.34904555,2937.5,2937.0,0.0051063]
[1767032861151,1.34904555,2937.7,2937.0,0.0051063]
[1767032861356,1.34904555,2937.8,2937.0,0.0051063]
[1767032861750,1.34904555,2937.8,2937.0,0.00789915]
[1767032861952,1.34904555,2937.6,2937.0,0.00789915]
[1767032863550,1.34904555,2937.6,2936.3,4.26744891]
[1767032864460,1.34904555,2937.4,2936.3,4.26744891]
[1767032864654,0.0051063,2937.1,2936.6,0.0051063]
[1767032865253,0.0051063,2937.1,2936.0,4.26744891]
[1767032865254,1.34904555,2936.8,2936.0,4.26744891]
[1767032865458,1.34904555,2936.8,2935.5,7.44540113]
[1767032865768,1.34904555,2937.0,2935.5,7.44540113]
[1767032865957,1.34904555,2937.0,2935.5,1.34904555]
[1767032866153,1.34904555,2937.0,2936.0,0.0051063]
[1767032866458,1.35212891,2937.0,2936.0,0.00749876]
[1767032867061,0.00308336,2937.0,2936.0,0.00749876]
[1767032871859,0.00308336,2937.0,2936.3,1.34904555]
[1767032872067,0.0051063,2937.1,2936.3,1.34904555]
[1767032872763,0.0051063,2937.1,2936.2,1.34904555]
[1767032873156,0.00755131,2937.1,2936.2,1.34904555]
[1767032874962,0.00755131,2937.1,2936.0,1.35654431]
[1767032876665,0.00755131,2937.1,2936.2,1.34904555]
[1767032878464,0.00755131,2937.1,2936.0,1.35654431]
[1767032880164,0.00755131,2937.1,2936.0,0.00749876]
[1767032880366,1.34904555,2936.7,2936.0,0.00749876]
[1767032880572,1.34904555,2936.9,2936.0,0.00749876]
[1767032881169,0.17041,2937.0,2936.0,0.00749876]
[1767032881773,0.17041,2937.0,2936.2,1.34904555]
[1767032881970,0.17041,2937.0,2936.0,1.35654431]
[1767032882170,0.17041,2937.0,2936.0,0.00749876]
[1767032885774,0.17041,2936.9,2936.0,0.00749876]
[1767032885968,1.35888277,2937.1,2936.0,0.00239246]
[1767032886175,0.17042,2936.7,2935.3,5.028]
[1767032887167,0.17042,2936.7,2935.7,0.0051063]
[1767032887575,0.17042,2936.7,2935.7,6.3e-06]
[1767032887778,0.17042,2936.7,2935.3,0.00437911]
[1767032888268,40.8,2936.6,2935.3,0.00437911]
[1767032888470,40.97043,2936.6,2935.3,0.00437911]
[1767032888670,40.97043,2936.6,2935.7,0.0051063]
[1767032890672,0.17043,2936.6,2935.7,0.0051063]
[1767032890984,1.35133146,2936.0,2934.2,4.43800891]
[1767032891280,1.35133146,2936.0,2934.4,0.00437911]
[1767032891884,0.17046,2936.1,2934.9,0.0051063]
[1767032891885,0.0051063,2935.5,2934.9,0.0051063]
[1767032892176,0.17046,2936.1,2935.0,0.00437911]
[1767032893174,0.0051063,2935.8,2935.0,0.00437911]
[1767032902173,0.17043,2936.6,2935.0,0.00437911]
[1767032902369,0.17043,2936.6,2935.2,0.00437911]
[1767032903373,0.0051063,2936.2,2935.2,0.00437911]
[1767032920595,0.0051063,2936.2,2934.9,0.00749784]
[1767032923499,0.0051063,2936.2,2934.9,0.17801784]
[1767032929699,6.58788712,2937.5,2934.9,0.17801784]
[1767032929700,0.17284501,2937.1,2935.2,1.35133146]
[1767032929899,0.17284501,2937.1,2935.6,1.35133146]
[1767032930597,0.0051063,2936.6,2935.6,1.35133146]
[1767032937410,0.0051063,2936.6,2935.4,0.1705]
[1767032941112,0.0051063,2936.6,2935.2,5.008]
[1767032944514,0.0051063,2936.6,2935.3,1.35157817]
[1767032944814,1.35157817,2936.5,2935.2,5.008]
[1767032947622,0.0051063,2936.6,2935.2,5.008]
[1767032947818,1.35157817,2936.1,2934.9,0.00749784]
[1767032948119,1.35157817,2935.9,2934.9,0.00749784]
[1767032948727,1.35157817,2935.9,2935.2,0.00437911]
[1767032950724,1.35157817,2935.9,2935.4,0.00437911]
[1767032957924,1.35157817,2935.9,2934.9,0.00749784]
[1767032958531,1.35157817,2935.7,2934.9,0.00749784]
[1767032961735,0.17045,2936.2,2934.9,0.00749784]
[1767032961935,1.35157817,2936.1,2934.9,0.00749784]
[1767032962126,1.35157817,2935.9,2934.9,0.00749784]
[1767032965033,0.17045,2936.2,2934.9,0.00749784]
[1767032965247,1.52202817,2936.2,2934.9,0.00749784]
[1767032965535,1.35157817,2936.0,2934.9,0.00749784]
[1767032970843,0.17045,2936.2,2934.9,0.00749784]
[1767032971141,1.52202817,2936.2,2934.9,0.00749784]
[1767032979242,1.35157817,2936.0,2934.9,0.00749784]
[1767032980445,1.52202817,2936.2,2934.9,0.00749784]
[1767032985450,1.35157817,2935.9,2934.9,0.00749784]
[1767032989450,1.35157817,2936.0,2934.9,0.00749784]
[1767032991148,0.17045,2936.2,2935.0,1.35157817]
[1767032994254,0.0051063,2936.6,2935.2,1.35157817]
[1767032994456,1.35157817,2936.5,2935.2,1.35157817]
[1767032996853,1.35157817,2936.3,2935.0,1.35157817]
[1767033000252,0.1755363,2936.6,2935.8,1.35157817]
[1767033000455,0.0051063,2936.6,2935.4,1.35157817]
[1767033001357,1.35157817,2936.5,2935.1,1.35157817]
[1767033001557,1.35157817,2936.3,2935.0,0.17052]
[1767033001751,1.35157817,2936.3,2935.1,4.989]
[1767033003053,1.35157817,2936.5,2935.1,6.34057817]
[1767033005862,1.35157817,2936.5,2935.1,1.35157817]
[1767033006663,0.0051063,2936.6,2935.0,5.15852]
[1767033008162,1.35172651,2936.5,2935.0,0.17052]
[1767033008356,9.2961063,2936.6,2935.0,0.17052]
[1767033014861,9.2961063,2936.6,2934.9,4.99449784]
[1767033014862,9.4665363,2936.6,2934.9,4.99449784]
[1767033015062,1.35172651,2936.2,2934.9,4.99449784]
[1767033015263,10.68972651,2936.2,2934.9,0.00749784]
[1767033019871,9.338,2936.2,2934.9,0.00749784]
[1767033024474,0.0051063,2936.6,2934.9,0.00749784]
[1767033030279,0.0051063,2936.6,2934.9,0.17801784]
[1767033030983,0.1755363,2936.6,2934.9,0.00749784]
[1767033031179,1.35172651,2936.3,2934.9,0.00749784]
[1767033033386,0.1755363,2936.6,2934.9,0.00749784]
[1767033036194,0.0051063,2936.6,2935.1,1.35172651]
[1767033037288,0.0051063,2936.6,2934.9,0.00749784]
[1767033037594,0.0051063,2936.6,2935.1,0.17051]
[1767033040500,0.0051063,2936.6,2935.3,0.1705]
[1767033040698,0.00244501,2937.1,2935.6,1.35172651]
[1767033040894,0.00244501,2937.1,2935.7,4.979]
[1767033041897,0.0051063,2936.7,2935.7,4.979]
[1767033049503,0.00244501,2937.1,2935.8,1.35172651]
[1767033050406,0.00244501,2937.1,2935.8,1.52219651]
[1767033055001,0.00244501,2937.1,2935.9,0.17047]
[1767033058607,0.00244501,2937.1,2936.0,4.985]
[1767033061009,40.8,2938.0,2936.2,1.35172651]
[1767033061203,40.8,2938.0,2936.8,0.0051063]
[1767033061713,40.97035,2938.0,2936.1,0.17045]
[1767033061909,1.35172651,2937.4,2935.5,4.43793891]
[1767033062111,1.3543609,2937.4,2935.5,4.43793891]
[1767033062309,1.3543609,2937.4,2935.6,4.985]
[1767033062709,0.0051063,2936.8,2936.2,0.0051063]
[1767033069619,1.35629918,2936.8,2935.5,4.43793891]
[1767033069821,0.0051063,2936.8,2935.5,4.43793891]
[1767033070017,0.0051063,2936.8,2935.6,1.52167288]
[1767033070216,0.0051063,2936.8,2935.9,1.35119288]
[1767033070614,0.0051063,2936.8,2936.1,0.0051063]
[1767033072021,6.3e-06,2936.8,2936.1,0.0051063]
[1767033079322,6.3e-06,2936.8,2936.3,1.35119288]
[1767033079527,0.00263439,2937.4,2936.3,1.35119288]
[1767033080426,0.0051063,2937.1,2936.3,1.35119288]
[1767033081827,0.0051063,2937.1,2936.2,4.982]
[1767033084933,6.3e-06,2937.1,2936.4,1.35119288]
[1767033085424,0.00263439,2937.4,2936.4,1.35119288]
[1767033086033,1.35119288,2938.3,2936.7,1.35119288]
[1767033086326,1.35119288,2937.9,2936.8,4.993]
[1767033087028,1.35542692,2937.9,2936.8,4.993]
[1767033090438,1.35119288,2937.7,2936.8,4.993]
[1767033093139,1.35119288,2937.3,2936.1,4.27255521]
[1767033093334,1.35119288,2937.3,2936.2,4.998]
[1767033095538,1.35119288,2937.5,2936.2,6.34919288]
[1767033097342,0.17037,2937.6,2936.2,6.34919288]
[1767033098442,1.35119288,2937.7,2936.2,6.34919288]
[1767033098942,0.00423404,2937.9,2936.2,6.34919288]
[1767033099142,1.35119288,2937.7,2936.2,6.34919288]
[1767033102950,1.35119288,2937.4,2936.2,4.998]
[1767033103451,1.35119288,2937.4,2936.1,0.0051063]
[1767033103452,1.35119288,2936.8,2936.1,0.0051063]
[1767033103942,1.35119288,2936.6,2936.1,0.0051063]
[1767033104147,1.35119288,2936.3,2934.7,4.43798891]
[1767033104343,1.35119288,2936.0,2935.0,5.007]
[1767033104538,1.35119288,2936.3,2935.0,5.007]
[1767033105144,0.0051063,2935.9,2935.4,0.0051063]
[1767033121368,1.35629918,2935.9,2935.4,0.0051063]
[1767033121567,1.35119288,2935.7,2934.9,0.00239154]
[1767033121768,1.35119288,2935.1,2934.1,0.17057]
[1767033122558,1.35119288,2935.1,2933.8,6.35419288]
[1767033122559,1.35119288,2935.1,2934.3,0.0051063]
[1767033122766,1.35119288,2935.1,2934.3,0.00858365]
[1767033123571,1.35119288,2934.5,2934.3,0.00858365]
[1767033123766,1.35119288,2935.0,2933.8,5.003]
[1767033124269,1.35119288,2935.1,2933.8,5.003]
[1767033124664,1.35119288,2935.2,2933.8,5.003]
[1767033124869,40.8,2935.6,2934.2,0.0051063]
[1767033125061,1.35119288,2935.5,2934.2,0.0051063]
[1767033125264,1.3543026,2935.7,2934.3,1.35119288]
[1767033125467,0.00310972,2935.7,2934.3,1.35119288]
[1767033125763,1.35119288,2935.6,2934.3,1.35119288]
[1767033125971,1.35119288,2935.6,2934.2,0.0051063]
[1767033126173,1.35119288,2935.4,2934.2,0.0051063]
[1767033126788,1.35119288,2935.2,2934.2,0.0051063]
[1767033130378,0.00310972,2935.7,2934.2,0.0051063]
[1767033130580,1.35297556,2935.6,2934.2,0.0051063]
[1767033130779,0.00310972,2935.7,2934.2,0.0051063]
[1767033131072,1.35608528,2935.7,2934.2,0.0051063]
[1767033132480,40.8,2935.6,2934.2,0.0051063]
[1767033133674,1.35608528,2935.7,2934.2,0.0051063]
[1767033133976,0.00310972,2935.7,2934.2,0.0051063]
[1767033137481,0.00310972,2935.7,2934.3,0.17056]
[1767033137687,0.00310972,2935.7,2934.3,4.55720088]
[1767033138087,0.00310972,2935.7,2934.3,0.17056]
[1767033143288,0.00310972,2935.7,2934.5,1.35297556]
[1767033143491,0.0051063,2935.9,2934.5,1.35297556]
[1767033143899,40.8,2936.8,2934.8,0.17053]
[1767033144196,40.8,2936.8,2934.9,4.998]
[1767033144394,40.80406078,2936.8,2934.9,4.998]
[1767033145094,0.0051063,2936.1,2934.9,4.998]
[1767033153198,0.0051063,2936.1,2934.9,4.999]
[1767033154297,0.0051063,2936.1,2934.8,5.17053]
[1767033154600,0.0051063,2936.1,2934.8,5.0]
[1767033158103,0.0051063,2936.1,2935.0,0.17052]
[1767033158401,6.3e-06,2936.1,2935.0,0.17052]
[1767033162898,6.3e-06,2936.1,2935.2,1.35297556]
[1767033163099,0.17448078,2936.8,2935.2,1.35297556]
[1767033164106,0.0051063,2936.3,2935.7,0.0051063]
[1767033164301,0.00406078,2936.8,2935.7,0.0051063]
[1767033165196,0.00406078,2936.8,2935.7,5.0011063]
[1767033167502,1.35703634,2936.8,2935.7,0.0051063]
[1767033168001,0.00406078,2936.8,2935.7,0.0051063]
[1767033175517,0.17448078,2936.8,2935.7,0.0051063]
[1767033189240,0.00406078,2936.8,2935.7,0.0051063]
[1767033190636,0.00406078,2936.8,2935.7,1.35625048]
[1767033192638,0.00406078,2936.8,2936.1,1.35114418]
[1767033192838,1.35114418,2937.5,2936.1,1.35114418]
[1767033193829,1.35551205,2937.5,2936.1,1.3535592]
[1767033194429,0.00436787,2937.5,2936.1,1.3535592]
[1767033195035,0.00436787,2937.5,2936.3,1.35114418]
[1767033197139,0.00436787,2937.5,2936.5,1.35114418]
[1767033197437,0.00436787,2937.5,2936.7,1.35114418]
[1767033198039,0.00436787,2937.5,2936.3,0.17044]
[1767033198240,0.00436787,2937.5,2936.6,1.35114418]
[1767033201245,0.00436787,2937.5,2936.4,1.35114418]
[1767033204152,1.35114418,2937.1,2936.1,0.00241502]
[1767033204347,0.00436787,2937.5,2936.1,1.3535592]
[1767033204553,0.00436787,2937.5,2936.3,1.35114418]
[1767033207660,1.35551205,2937.5,2936.3,1.35114418]
[1767033207860,1.35551205,2937.5,2936.1,1.3535592]
[1767033216059,1.35114418,2936.7,2935.7,4.27255521]
[1767033216368,1.35114418,2936.5,2935.7,0.0051063]
[1767033216556,1.35114418,2936.6,2935.7,0.0051063]
[1767033217162,1.35114418,2936.8,2935.7,0.0094145]
[1767033219867,0.17039,2937.2,2935.7,0.0094145]
[1767033220064,1.52153418,2937.2,2935.7,1.36055868]
[1767033221768,1.52153418,2937.2,2935.9,1.35114418]
[1767033221957,0.17039,2937.2,2935.9,1.35114418]
[1767033225181,0.17039,2937.2,2935.7,0.0094145]
[1767033225182,0.00436787,2937.5,2936.3,1.35114418]
[1767033226086,0.00436787,2937.5,2936.1,1.35114418]
[1767033227081,0.00436787,2937.5,2936.3,1.35114418]
[1767033231692,0.00436787,2937.5,2936.1,1.35114418]
[1767033240600,0.00436787,2937.5,2935.9,0.17047]
[1767033240601,1.35114418,2937.1,2935.9,0.17047]
[1767033240800,1.35114418,2936.7,2935.7,0.0094145]
[1767033241693,0.17043,2936.9,2935.7,0.0094145]
[1767033241892,1.35114418,2936.1,2934.7,5.60766238]
[1767033242092,1.35114418,2936.3,2934.9,1.35114418]
[1767033243103,0.0051063,2935.9,2935.3,0.0051063]
[1767033243489,6.3e-06,2935.9,2935.3,0.0051063]
[1767033249905,6.3e-06,2935.9,2935.5,1.35114418]
[1767033250111,0.17043,2936.8,2935.7,1.35114418]
[1767033250302,1.35114418,2937.2,2935.7,1.35114418]
[1767033250502,1.35114418,2937.0,2935.7,1.35114418]
[1767033252614,40.9704,2937.3,2935.3,0.0051063]
[1767033256115,0.1704,2937.3,2935.3,0.0051063]
[1767033257415,0.1704,2937.3,2935.4,0.17051]
[1767033257616,0.17042,2937.0,2935.3,0.0051063]
[1767033257815,1.35125901,2936.7,2935.3,0.0051063]
[1767033263527,1.35125901,2936.3,2935.3,0.0051063]
[1767033264025,1.52169901,2936.7,2935.3,0.0051063]
[1767033267526,1.35125901,2937.1,2935.3,0.0051063]
[1767033269324,1.52166901,2937.1,2935.3,0.0051063]
[1767033270925,0.17041,2937.1,2935.3,1.35636531]
[1767033277434,0.17041,2937.1,2935.3,1.52688531]
[1767033277637,0.17041,2937.1,2935.4,0.17051]
[1767033277939,9.05336787,2937.5,2935.5,0.17051]
[1767033278431,0.00436787,2937.5,2935.7,1.35125901]
[1767033278640,0.00436787,2937.5,2935.7,1.52175901]
[1767033280636,0.00436787,2937.5,2935.7,0.1705]
[1767033284147,0.17475787,2937.5,2935.7,0.1705]
[1767033284355,0.1704,2937.4,2935.7,0.1705]
[1767033284850,1.52165901,2937.4,2935.7,0.1705]
[1767033286053,0.1704,2937.3,2935.7,0.1705]
[1767033290254,0.1704,2937.3,2935.7,1.52175901]
[1767033300866,0.00436787,2937.5,2935.7,1.52175901]
[1767033301070,0.00436787,2937.5,2936.1,1.35125901]
[1767033301865,0.00436787,2937.5,2936.2,0.17047]
[1767033302074,40.8,2938.4,2936.3,5.12946]
[1767033302369,40.8,2938.4,2937.1,0.0051063]
[1767033303160,40.8035532,2938.4,2937.1,0.00891202]
[1767033303767,40.9738932,2938.4,2937.1,0.00891202]
[1767033303964,0.17035,2938.3,2937.1,0.00891202]
[1767033304766,1.35125901,2938.1,2936.5,0.17045]
[1767033305774,0.0051063,2937.6,2937.0,0.0051063]
[1767033306473,0.0035532,2938.4,2937.0,0.0051063]
[1767033309080,0.1738932,2938.4,2937.0,0.0051063]
[1767033309580,0.17035,2938.3,2937.0,0.0051063]
[1767033312883,0.17035,2938.2,2937.0,0.0051063]
[1767033314585,1.52049501,2938.2,2937.0,0.0051063]
[1767033316992,0.0035532,2938.4,2937.9,1.35014501]
[1767033317183,0.0035532,2938.4,2937.0,1.35525131]
[1767033317382,1.35014501,2938.2,2937.0,0.44505079]
[1767033317776,1.35369821,2938.4,2937.0,0.1755263]
[1767033318081,1.35369821,2938.4,2937.0,1.52567131]
[1767033318701,0.0035532,2938.4,2937.2,1.35014501]
[1767033318990,0.0035532,2938.4,2937.4,1.35014501]
[1767033319578,0.0035532,2938.4,2937.8,1.35014501]
[1767033319788,40.8,2939.1,2937.8,1.35014501]
[1767033320385,10.40514501,2939.2,2937.8,1.35014501]
[1767033320692,10.40514501,2939.2,2937.0,1.35525131]
[1767033320693,0.00297703,2939.2,2937.3,0.1704]